bitfinex-derivatives/quotes_BTCF0:USTF0_20240903
["timestamp","ask_amount","ask_price","bid_price","bid_amount"]
[1725387609424,0.0004,57889.0,57888.0,0.328394]
[1725387612626,0.086793,57889.0,57888.0,0.328394]
[1725387612921,0.24054829,57889.0,57888.0,0.328394]
[1725387613426,0.18212706,57889.0,57888.0,0.328394]
[1725387613724,0.33588235,57889.0,57888.0,0.328394]
[1725387615525,0.69668235,57889.0,57888.0,0.328394]
[1725387615725,0.33588235,57889.0,57888.0,0.328394]
[1725387615929,0.18212706,57889.0,57888.0,0.328394]
[1725387616223,0.33605093,57889.0,57888.0,0.328394]
[1725387616726,0.18212706,57889.0,57888.0,0.328394]
[1725387617322,0.15434943,57889.0,57888.0,0.328394]
[1725387617718,0.20737733,57889.0,57888.0,0.328394]
[1725387617919,0.24968349,57889.0,57888.0,0.328394]
[1725387618129,0.09573406,57889.0,57888.0,0.328394]
[1725387618814,0.04270616,57889.0,57888.0,0.328394]
[1725387619015,0.12909916,57889.0,57888.0,0.088394]
[1725387619213,0.09573516,57889.0,57888.0,0.328394]
[1725387619615,0.24968459,57889.0,57888.0,0.328394]
[1725387619820,0.0004,57889.0,57888.0,0.328394]
[1725387620221,0.0604,57889.0,57888.0,0.328394]
[1725387625726,0.0004,57889.0,57888.0,0.328394]
[1725387626219,0.0004,57889.0,57888.0,0.414789]
[1725387627525,0.0004,57889.0,57888.0,0.46650408]
[1725387627732,0.0004,57889.0,57888.0,0.38010908]
[1725387628032,0.04270636,57889.0,57888.0,0.328394]
[1725387628230,0.04270636,57889.0,57888.0,0.414789]
[1725387628530,0.13732914,57889.0,57888.0,0.328394]
[1725387628728,0.1796355,57889.0,57888.0,0.328394]
[1725387628930,0.04270636,57889.0,57888.0,0.328394]
[1725387629233,0.13801293,57889.0,57888.0,0.328394]
[1725387629425,0.18031929,57889.0,57888.0,0.328394]
[1725387629628,0.04270636,57889.0,57888.0,0.328394]
[1725387630136,0.04270763,57889.0,57888.0,0.328394]
[1725387631633,0.0004,57889.0,57888.0,0.328394]
[1725387632139,0.09573709,57889.0,57888.0,0.328394]
[1725387632342,0.09573642,57889.0,57888.0,0.414789]
[1725387632638,0.09573505,57889.0,57888.0,0.414789]
[1725387633230,0.19665706,57889.0,57888.0,0.414789]
[1725387633442,0.20737685,57889.0,57888.0,0.414789]
[1725387633736,0.24968448,57889.0,57888.0,0.414789]
[1725387633947,0.19665706,57889.0,57888.0,0.414789]
[1725387634135,0.20737685,57889.0,57888.0,0.174789]
[1725387634335,0.15434943,57889.0,57888.0,0.414789]
[1725387634537,0.0004,57889.0,57888.0,0.414789]
[1725387634835,0.15558193,57889.0,57888.0,0.414789]
[1725387635036,0.0004,57889.0,57888.0,0.54644174]
[1725387639133,0.0004,57889.0,57888.0,0.91644174]
[1725387639942,0.0004,57889.0,57888.0,0.784789]
[1725387640241,0.0004,57889.0,57888.0,0.9164428]
[1725387641451,0.0004,57889.0,57888.0,1.0028378]
[1725387641744,0.004,57901.0,57900.0,0.172754]
[1725387642046,0.09512285,57906.0,57901.0,0.086375]
[1725387642252,0.196368,57906.0,57905.0,0.326369]
[1725387642752,0.00116,57919.0,57905.0,0.39542813]
[1725387642938,0.00116,57919.0,57918.0,0.08635]
[1725387642939,0.004,57919.0,57918.0,0.08635]
[1725387643139,0.2061,57927.0,57926.0,0.086338]
[1725387643443,0.1035,57927.0,57926.0,0.326338]
[1725387644246,0.01688589,57927.0,57926.0,0.687138]
[1725387644451,0.086325,57935.0,57926.0,0.6008]
[1725387644748,0.206325,57935.0,57933.0,0.24]
[1725387645146,0.87864,57934.0,57930.0,0.24]
[1725387645342,0.0004,57931.0,57930.0,0.24]
[1725387645539,0.1304,57931.0,57930.0,0.24]
[1725387645737,0.0004,57931.0,57930.0,0.326332]
[1725387646344,0.0004,57931.0,57930.0,0.327332]
[1725387647248,0.0004,57931.0,57930.0,0.001]
[1725387647744,1.35828,57931.0,57930.0,0.001]
[1725387647947,1.444611,57931.0,57925.0,0.00025904]
[1725387648247,0.3612,57926.0,57925.0,0.00025904]
[1725387648555,0.3602,57926.0,57925.0,0.00025904]
[1725387648741,1.47812,57926.0,57925.0,0.00025904]
[1725387649251,1.564458,57926.0,57925.0,0.00125904]
[1725387649554,1.564458,57926.0,57925.0,0.00225904]
[1725387649935,1.72168974,57926.0,57925.0,0.00225904]
[1725387651051,1.72168974,57926.0,57925.0,0.00125904]
[1725387651245,1.72268974,57926.0,57925.0,0.00225904]
[1725387651645,1.72168974,57926.0,57925.0,0.00125904]
[1725387651943,1.72368974,57926.0,57925.0,0.00225904]
[1725387653043,1.85368974,57926.0,57925.0,0.00225904]
[1725387654444,1.85368954,57926.0,57925.0,0.00225904]
[1725387654635,1.94002754,57926.0,57925.0,0.00225904]
[1725387655745,1.85368954,57926.0,57925.0,0.00225904]
[1725387655942,1.25368954,57926.0,57925.0,0.00225904]
[1725387656348,1.85368954,57926.0,57925.0,0.00225904]
[1725387657649,1.34002754,57926.0,57925.0,0.00225904]
[1725387657855,0.086357,57913.0,57912.0,0.004]
[1725387658051,0.086357,57913.0,57912.0,0.326359]
[1725387658251,0.086353,57916.0,57915.0,0.086353]
[1725387658548,0.3608,57918.0,57917.0,0.086352]
[1725387658853,0.086356,57915.0,57912.0,0.00025904]
[1725387659038,0.0004,57913.0,57912.0,0.08661804]
[1725387660374,0.0004,57913.0,57912.0,0.32661804]
[1725387660752,0.0014,57913.0,57912.0,0.32661804]
[1725387661558,0.0034,57913.0,57912.0,0.32661804]
[1725387661745,0.0034,57913.0,57912.0,0.68741804]
[1725387662250,0.0064,57913.0,57912.0,0.77377704]
[1725387663454,0.0044,57913.0,57912.0,0.77377704]
[1725387663865,0.087757,57913.0,57912.0,0.44741804]
[1725387664160,1.183954,57913.0,57912.0,0.00025904]
[1725387664664,1.182954,57913.0,57912.0,0.00025904]
[1725387664860,0.905914,57913.0,57912.0,0.00025904]
[1725387665660,1.423954,57913.0,57912.0,0.00025904]
[1725387666066,1.423954,57913.0,57899.0,0.004]
[1725387666067,0.086374,57902.0,57899.0,0.004]
[1725387666365,0.086384,57896.0,57892.0,0.2212]
[1725387666560,0.0004,57893.0,57892.0,0.2212]
[1725387666747,0.0004,57893.0,57892.0,0.307589]
[1725387667653,0.2294,57895.0,57893.0,0.086387]
[1725387668148,0.2294,57895.0,57894.0,0.086386]
[1725387668750,0.326384,57895.0,57892.0,0.1098]
[1725387668952,0.34336081,57895.0,57892.0,0.196189]
[1725387669165,0.34636081,57895.0,57893.0,0.001]
[1725387669365,0.34636081,57895.0,57894.0,0.001]
[1725387669366,0.34836081,57895.0,57894.0,0.001]
[1725387670060,0.3906687,57895.0,57894.0,0.001]
[1725387670361,0.086386,57894.0,57893.0,0.001]
[1725387670660,0.604586,57894.0,57893.0,0.001]
[1725387670861,1.33328357,57894.0,57893.0,0.001]
[1725387671351,0.17279,57888.0,57887.0,0.00025904]
[1725387671667,0.085413,57876.0,57875.0,0.004]
[1725387671963,0.6008,57876.0,57872.0,0.296519]
[1725387672165,0.086416,57874.0,57872.0,0.296519]
[1725387672560,0.085423,57869.0,57867.0,0.00025904]
[1725387672862,0.325423,57869.0,57867.0,0.00025904]
[1725387673267,0.320423,57869.0,57867.0,0.08668504]
[1725387674058,0.0004,57868.0,57867.0,0.08668504]
[1725387674460,0.320423,57869.0,57867.0,0.08668504]
[1725387674461,0.319823,57869.0,57867.0,0.08668504]
[1725387675071,0.320823,57869.0,57867.0,0.09068504]
[1725387675255,0.002,57868.0,57867.0,0.09068504]
[1725387675775,0.002,57868.0,57867.0,0.00025904]
[1725387675776,0.088425,57868.0,57867.0,0.00025904]
[1725387675962,0.086425,57868.0,57867.0,0.00025904]
[1725387676764,0.090425,57868.0,57867.0,0.00025904]
[1725387677656,0.093425,57868.0,57867.0,0.00025904]
[1725387678866,0.17985,57868.0,57867.0,0.00025904]
[1725387679074,0.69829,57868.0,57867.0,0.00025904]
[1725387679969,0.17985,57868.0,57867.0,0.00025904]
[1725387680182,0.69829,57868.0,57867.0,0.00025904]
[1725387681373,0.81829,57868.0,57867.0,0.00025904]
[1725387684076,1.504715,57868.0,57867.0,0.00025904]
[1725387684374,1.744715,57868.0,57867.0,0.00025904]
[1725387684566,1.504715,57868.0,57867.0,0.00025904]
[1725387685172,1.48544,57868.0,57856.0,0.004]
[1725387685377,1.48544,57868.0,57852.0,0.086448]
[1725387685378,0.2404,57857.0,57852.0,0.086448]
[1725387685572,0.2404,57853.0,57852.0,0.086448]
[1725387685871,0.326447,57853.0,57852.0,0.086448]
[1725387686069,0.08645,57851.0,57850.0,0.1047]
[1725387686275,0.08685,57851.0,57850.0,0.086452]
[1725387686659,0.04359558,57851.0,57850.0,0.086452]
[1725387687773,0.0004,57851.0,57848.0,0.2141]
[1725387687979,0.2404,57849.0,57848.0,0.300555]
[1725387688674,0.2404,57849.0,57848.0,0.2141]
[1725387688675,0.086453,57849.0,57848.0,0.2141]
[1725387688866,0.086453,57849.0,57845.0,0.00025928]
[1725387688867,0.086455,57848.0,57845.0,0.00025928]
[1725387689067,0.326458,57846.0,57845.0,0.00025928]
[1725387689262,0.456458,57846.0,57845.0,0.00025928]
[1725387689469,0.452458,57846.0,57845.0,0.00025928]
[1725387691277,0.453458,57846.0,57845.0,0.00025928]
[1725387691781,0.454458,57846.0,57845.0,0.00025928]
[1725387693184,0.454858,57846.0,57845.0,0.00025928]
[1725387695081,0.453858,57846.0,57845.0,0.00025928]
[1725387696389,0.457858,57846.0,57845.0,0.00025928]
[1725387697180,0.457858,57846.0,57845.0,0.08671828]
[1725387697385,0.457858,57846.0,57845.0,0.00025928]
[1725387697777,0.544316,57846.0,57845.0,0.00025928]
[1725387699882,0.544316,57846.0,57845.0,0.05179704]
[1725387700482,0.544316,57846.0,57845.0,0.00025928]
[1725387702492,0.905116,57846.0,57845.0,0.00025928]
[1725387702785,0.905116,57846.0,57845.0,0.06929768]
[1725387702986,0.905116,57846.0,57845.0,0.00025928]
[1725387703583,0.905116,57846.0,57845.0,0.06929768]
[1725387704279,0.991574,57846.0,57845.0,0.06929768]
[1725387704494,0.086469,57838.0,57837.0,0.08609191]
[1725387704694,0.537669,57838.0,57837.0,0.08609191]
[1725387704994,0.086471,57837.0,57836.0,0.08609191]
[1725387705189,0.396871,57837.0,57836.0,0.08609191]
[1725387705499,0.396871,57837.0,57834.0,0.086475]
[1725387705500,0.086475,57835.0,57834.0,0.086475]
[1725387705689,0.2404,57835.0,57834.0,0.21826505]
[1725387706180,0.326875,57835.0,57834.0,0.2182654]
[1725387706384,0.326875,57835.0,57834.0,0.086475]
[1725387707792,0.2414,57835.0,57834.0,0.086475]
[1725387708385,0.2424,57835.0,57834.0,0.086475]
[1725387708996,0.25591595,57835.0,57834.0,0.086475]
[1725387709690,0.25591595,57835.0,57834.0,0.17258247]
[1725387710400,0.25591595,57835.0,57834.0,0.086475]
[1725387710888,0.35591595,57835.0,57831.0,0.08636675]
[1725387711081,0.6012,57832.0,57831.0,0.08673928]
[1725387711288,0.7112,57832.0,57831.0,0.00025928]
[1725387711894,0.7112,57832.0,57831.0,0.08673928]
[1725387712099,0.7112,57832.0,57831.0,0.00025928]
[1725387712285,0.7112,57832.0,57819.0,0.086496]
[1725387712286,1.82996,57832.0,57826.0,0.08610747]
[1725387712488,0.3612,57827.0,57824.0,0.17259647]
[1725387712694,0.2404,57825.0,57824.0,0.086489]
[1725387712892,0.2488621,57825.0,57824.0,0.086489]
[1725387713095,0.2488621,57825.0,57824.0,0.17259647]
[1725387713289,0.2488621,57825.0,57824.0,0.086489]
[1725387713601,0.24,57825.0,57824.0,0.086489]
[1725387714097,0.24,57825.0,57824.0,0.17259647]
[1725387714284,0.24,57825.0,57824.0,0.30441008]
[1725387714592,0.24,57825.0,57824.0,0.21830261]
[1725387715295,0.24,57825.0,57824.0,0.30445862]
[1725387715594,0.24,57825.0,57824.0,0.21830288]
[1725387716098,0.24,57825.0,57824.0,0.21830019]
[1725387716297,0.25404921,57825.0,57824.0,0.30479019]
[1725387717004,0.25404921,57825.0,57824.0,0.39128019]
[1725387717197,0.01404921,57825.0,57824.0,0.259469]
[1725387717498,0.0004,57827.0,57826.0,0.172974]
[1725387717691,0.0404,57827.0,57826.0,0.620261]
[1725387718399,0.0004,57827.0,57826.0,0.620261]
[1725387718788,0.0004,57827.0,57826.0,0.83822947]
[1725387719095,0.0004,57827.0,57826.0,1.20822947]
[1725387719290,0.0004,57827.0,57826.0,1.07643616]
[1725387719604,0.00025928,57830.0,57829.0,0.259449]
[1725387719786,2.8e-07,57830.0,57829.0,0.585932]
[1725387719990,2.8e-07,57830.0,57829.0,0.7177163]
[1725387720186,2.8e-07,57830.0,57829.0,1.0877163]
[1725387720687,0.00100028,57830.0,57829.0,1.0877163]
[1725387721195,0.00500028,57830.0,57829.0,1.0877163]
[1725387722302,0.00200028,57830.0,57829.0,1.0877163]
[1725387722490,0.00200028,57830.0,57829.0,1.6064763]
[1725387722888,0.00200028,57830.0,57829.0,1.69271076]
[1725387723188,0.00200028,57830.0,57829.0,1.17395076]
[1725387723588,0.00200028,57830.0,57829.0,1.474692]
[1725387723994,2.8e-07,57830.0,57829.0,0.955932]
[1725387724207,2.8e-07,57830.0,57829.0,2.20646874]
[1725387724396,2.8e-07,57830.0,57829.0,2.31011492]
[1725387724893,2.8e-07,57830.0,57829.0,2.20646051]
[1725387725291,0.00025928,57835.0,57834.0,0.3459]
[1725387725503,0.00025928,57835.0,57834.0,1.07846851]
[1725387725701,0.00025928,57835.0,57834.0,2.36812]
[1725387725904,2.8e-07,57835.0,57834.0,2.86988325]
[1725387726106,2.8e-07,57846.0,57845.0,0.345836]
[1725387726407,2.8e-07,57846.0,57845.0,1.68321539]
[1725387726600,2.8e-07,57846.0,57845.0,1.5970221]
[1725387726802,2.8e-07,57846.0,57845.0,2.05321295]
[1725387727197,2.8e-07,57846.0,57845.0,1.835276]
[1725387727401,2.8e-07,57846.0,57845.0,2.435276]
[1725387727900,2.8e-07,57846.0,57845.0,2.65321072]
[1725387728102,2.8e-07,57846.0,57845.0,2.56701987]
[1725387728300,2.8e-07,57846.0,57845.0,2.92781987]
[1725387729094,2.8e-07,57846.0,57845.0,2.93181987]
[1725387729303,2.8e-07,57846.0,57845.0,3.01788572]
[1725387729506,2.8e-07,57846.0,57845.0,3.0178739]
[1725387729702,2.8e-07,57846.0,57845.0,2.800076]
[1725387730608,2.8e-07,57846.0,57845.0,2.81411356]
[1725387731708,0.00025928,57851.0,57845.0,2.81411356]
[1725387731709,0.00025928,57851.0,57850.0,0.259356]
[1725387731911,0.00025928,57851.0,57850.0,0.860156]
[1725387732306,2.8e-07,57851.0,57850.0,1.230156]
[1725387732806,2.8e-07,57851.0,57850.0,2.435168]
[1725387733224,2.8e-07,57851.0,57850.0,2.24672956]
[1725387733408,0.00400028,57851.0,57850.0,2.24672956]
[1725387733604,0.00400028,57851.0,57850.0,1.64672956]
[1725387733799,0.00400028,57851.0,57850.0,1.595168]
[1725387734212,0.00400028,57851.0,57850.0,1.076608]
[1725387734614,0.00400028,57851.0,57850.0,1.316608]
[1725387736617,0.00400028,57851.0,57850.0,1.230156]
[1725387736809,0.00400028,57851.0,57850.0,0.533704]
[1725387737008,0.00400028,57851.0,57850.0,0.773704]
[1725387738713,0.00400028,57851.0,57850.0,0.860156]
[1725387740410,0.00400028,57851.0,57850.0,0.946608]
[1725387741906,0.00400028,57851.0,57850.0,0.585808]
[1725387742106,0.00400028,57851.0,57850.0,0.946608]
[1725387743213,2.8e-07,57851.0,57850.0,2.065168]
[1725387743412,0.00025928,57856.0,57855.0,0.259332]
[1725387743613,0.00025928,57856.0,57855.0,0.946576]
[1725387743819,0.2085,57869.0,57868.0,0.17285]
[1725387744021,0.2085,57869.0,57868.0,0.086425]
[1725387745012,0.23599904,57869.0,57868.0,0.326425]
[1725387746415,0.23899904,57869.0,57868.0,0.326425]
[1725387746818,0.12429904,57869.0,57868.0,0.327425]
[1725387747116,0.12429904,57869.0,57868.0,0.688225]
[1725387749618,0.12229904,57869.0,57868.0,0.688225]
[1725387750032,0.12129904,57869.0,57868.0,0.687225]
[1725387750318,0.12029904,57869.0,57868.0,0.687225]
[1725387750519,0.12229904,57869.0,57868.0,0.687225]
[1725387752117,0.12129904,57869.0,57868.0,0.687225]
[1725387752315,0.12329904,57869.0,57868.0,0.687225]
[1725387752621,0.02049904,57869.0,57868.0,0.687225]
[1725387752813,0.007,57869.0,57868.0,0.77365]
[1725387754810,0.007,57869.0,57868.0,0.860075]
[1725387755216,0.007,57869.0,57868.0,0.91163656]
[1725387755420,0.04931791,57869.0,57868.0,0.860075]
[1725387755616,0.10236054,57869.0,57868.0,0.860075]
[1725387756025,0.10236054,57869.0,57868.0,1.982475]
[1725387756026,0.23658753,57869.0,57868.0,1.982475]
[1725387756331,0.10036054,57869.0,57868.0,1.982475]
[1725387756515,0.17990103,57869.0,57868.0,2.0689]
[1725387756720,0.00025928,57874.0,57868.0,2.0689]
[1725387756721,0.07770849,57871.0,57870.0,0.259266]
[1725387756921,0.00025928,57874.0,57873.0,0.259251]
[1725387757119,0.0532956,57874.0,57873.0,1.240911]
[1725387757325,0.0532956,57874.0,57873.0,1.610911]
[1725387759027,0.0532956,57874.0,57873.0,1.092551]
[1725387759231,0.0542956,57874.0,57873.0,1.098551]
[1725387759421,0.0552956,57874.0,57873.0,1.106551]
[1725387759831,0.0542956,57874.0,57873.0,1.100551]
[1725387760017,0.0552956,57874.0,57873.0,1.107551]
[1725387760626,0.0542956,57874.0,57873.0,1.104551]
[1725387761221,0.0552956,57874.0,57873.0,1.106551]
[1725387761430,0.0542956,57874.0,57873.0,1.103551]
[1725387762324,0.00125928,57874.0,57873.0,1.103551]
[1725387763030,0.00025928,57874.0,57873.0,1.102551]
[1725387763919,0.00025928,57874.0,57873.0,1.097551]
[1725387764120,0.00025928,57874.0,57873.0,1.100551]
[1725387766027,0.01368482,57874.0,57873.0,1.100551]
[1725387766334,0.00025928,57874.0,57873.0,1.100551]
[1725387773238,0.00025928,57874.0,57873.0,0.825217]
[1725387773422,0.00025928,57874.0,57873.0,0.008]
[1725387773423,0.41309128,57874.0,57873.0,0.008]
[1725387773626,0.51039128,57874.0,57873.0,0.008]
[1725387774334,0.55039128,57874.0,57873.0,0.008]
[1725387774535,0.086423,57869.0,57868.0,0.447224]
[1725387774833,0.085423,57869.0,57868.0,0.447224]
[1725387775024,0.085823,57869.0,57868.0,0.447224]
[1725387775426,0.086428,57866.0,57865.0,0.086429]
[1725387775636,0.086431,57864.0,57863.0,0.24113928]
[1725387775839,0.086831,57864.0,57863.0,0.00025928]
[1725387776037,0.086431,57864.0,57863.0,0.00025928]
[1725387776734,0.085431,57864.0,57863.0,0.00025928]
[1725387777329,0.22291357,57864.0,57863.0,0.00125928]
[1725387777625,0.12775728,57864.0,57863.0,0.08969128]
[1725387777824,0.04232628,57864.0,57863.0,0.32969128]
[1725387778033,0.13768953,57865.0,57864.0,0.086431]
[1725387778329,0.04232561,57865.0,57863.0,0.24325928]
[1725387778530,0.13807299,57866.0,57863.0,0.24325928]
[1725387778833,0.13807299,57866.0,57864.0,0.37]
[1725387778834,0.04232412,57865.0,57864.0,0.37]
[1725387779034,0.17999711,57865.0,57864.0,0.37]
[1725387779241,0.04232412,57865.0,57864.0,0.371]
[1725387779441,0.17999711,57865.0,57864.0,0.371]
[1725387779733,0.17999711,57865.0,57864.0,0.457431]
[1725387780240,0.04232412,57865.0,57864.0,0.457431]
[1725387780540,0.04232412,57865.0,57864.0,0.543862]
[1725387780834,0.04232412,57865.0,57864.0,0.647962]
[1725387781045,0.0004,57866.0,57865.0,0.259287]
[1725387781236,0.00025928,57874.0,57873.0,0.172834]
[1725387781432,0.00025928,57874.0,57873.0,0.773634]
[1725387781833,0.00025928,57874.0,57873.0,1.143634]
[1725387783840,0.00925928,57874.0,57873.0,1.144634]
[1725387784241,0.00925928,57874.0,57873.0,2.351411]
[1725387784639,0.00925928,57874.0,57873.0,2.353411]
[1725387784640,0.00025928,57874.0,57873.0,2.353411]
[1725387785145,0.00025928,57874.0,57873.0,1.753411]
[1725387785342,0.18557337,57882.0,57873.0,2.39866868]
[1725387785645,0.447191,57891.0,57886.0,0.086398]
[1725387785646,0.086397,57887.0,57886.0,0.086398]
[1725387787538,0.099397,57887.0,57886.0,0.087398]
[1725387787938,0.106397,57887.0,57886.0,0.088398]
[1725387788538,0.106397,57887.0,57886.0,0.087398]
[1725387788539,0.099397,57887.0,57886.0,0.087398]
[1725387788838,0.106397,57887.0,57886.0,0.088398]
[1725387789535,0.105397,57887.0,57886.0,0.088398]
[1725387790234,0.019,57887.0,57886.0,0.088398]
[1725387790435,0.019,57887.0,57886.0,0.174796]
[1725387790743,0.019,57887.0,57886.0,0.33016026]
[1725387790941,0.019,57887.0,57886.0,0.366094]
[1725387797142,0.019,57887.0,57886.0,0.452492]
[1725387797343,0.019,57887.0,57886.0,1.570732]
[1725387797543,0.0002583,57892.0,57891.0,0.25917]
[1725387797846,0.0002583,57892.0,57891.0,1.22997]
[1725387798149,0.12030479,57900.0,57899.0,0.086378]
[1725387798371,0.086371,57905.0,57899.0,0.086378]
[1725387798372,0.12030479,57902.0,57901.0,0.086375]
[1725387798543,0.12030479,57903.0,57902.0,0.086374]
[1725387798743,0.12030479,57904.0,57903.0,0.172744]
[1725387798944,0.12030479,57906.0,57905.0,0.086369]
[1725387799353,0.086364,57909.0,57906.0,0.086368]
[1725387799354,0.12030479,57907.0,57906.0,0.086368]
[1725387799554,0.086366,57907.0,57906.0,0.086368]
[1725387799752,0.12866328,57907.0,57906.0,0.086368]
[1725387800455,0.086366,57907.0,57906.0,0.086368]
[1725387800656,0.192866,57907.0,57906.0,0.086368]
[1725387802147,0.191866,57907.0,57906.0,0.087368]
[1725387802552,0.191866,57907.0,57906.0,0.088368]
[1725387803152,1.309946,57907.0,57906.0,0.002]
[1725387803355,1.456312,57907.0,57906.0,0.002]
[1725387803555,0.086375,57901.0,57900.0,0.00025904]
[1725387803754,0.687575,57901.0,57900.0,0.00025904]
[1725387803957,1.855695,57901.0,57900.0,0.00025904]
[1725387804146,1.94107,57901.0,57900.0,0.00025904]
[1725387805652,1.94007,57901.0,57900.0,0.00025904]
[1725387806158,1.94307,57901.0,57900.0,0.00125904]
[1725387806656,1.94007,57901.0,57900.0,0.00125904]
[1725387806847,1.94307,57901.0,57900.0,0.00225904]
[1725387807261,1.94007,57901.0,57900.0,0.00125904]
[1725387807457,2.03940553,57901.0,57900.0,0.00225904]
[1725387807759,2.03940553,57901.0,57889.0,0.090392]
[1725387807760,0.086392,57890.0,57889.0,0.090392]
[1725387807965,0.086392,57890.0,57885.0,0.447198]
[1725387807966,0.086395,57888.0,57885.0,0.447198]
[1725387808159,0.086395,57888.0,57882.0,0.24]
[1725387808160,0.0004,57886.0,57882.0,0.24]
[1725387808357,0.447195,57888.0,57886.0,0.086397]
[1725387808556,0.086399,57885.0,57883.0,0.086401]
[1725387808756,0.086399,57885.0,57881.0,0.00025904]
[1725387808757,0.0004,57884.0,57881.0,0.00025904]
[1725387808966,0.086199,57885.0,57881.0,0.00025904]
[1725387809155,0.12871379,57884.0,57882.0,0.086404]
[1725387809355,0.086401,57884.0,57882.0,0.086404]
[1725387809559,0.04231293,57883.0,57882.0,0.086404]
[1725387809862,0.086404,57882.0,57881.0,0.00025904]
[1725387810067,0.12871698,57882.0,57881.0,0.00025904]
[1725387810264,0.17876024,57882.0,57881.0,0.00025904]
[1725387811283,0.12671698,57882.0,57881.0,0.00025904]
[1725387811955,0.12571698,57882.0,57881.0,0.00025904]
[1725387812360,0.1787596,57882.0,57881.0,0.00025904]
[1725387812559,0.18475983,57882.0,57881.0,0.00125904]
[1725387813268,0.19853189,57882.0,57881.0,0.00125904]
[1725387813460,1.31685189,57882.0,57881.0,0.00125904]
[1725387814056,0.71685189,57882.0,57881.0,0.00125904]
[1725387814261,0.14548904,57882.0,57881.0,0.00125904]
[1725387814670,0.28277983,57882.0,57881.0,0.00125904]
[1725387815472,0.32687085,57882.0,57881.0,0.00125904]
[1725387815662,1.39430406,57882.0,57881.0,0.00125904]
[1725387815860,0.086417,57873.0,57872.0,0.004]
[1725387816060,0.086428,57866.0,57865.0,0.41248128]
[1725387816264,0.086828,57866.0,57865.0,0.447229]
[1725387816866,0.326828,57866.0,57865.0,0.3608]
[1725387817064,1.445268,57866.0,57860.0,0.08669504]
[1725387817269,0.0004,57861.0,57860.0,0.08669504]
[1725387817466,0.086835,57861.0,57860.0,0.08669504]
[1725387817675,0.0004,57861.0,57860.0,0.08669504]
[1725387818767,0.1009755,57866.0,57865.0,0.0116]
[1725387819068,0.1009755,57866.0,57865.0,0.0236]
[1725387819267,0.0145475,57866.0,57865.0,0.012]
[1725387819458,0.0135475,57866.0,57865.0,0.012]
[1725387819658,0.3608,57867.0,57866.0,0.086428]
[1725387820777,0.447226,57867.0,57866.0,0.086428]
[1725387820958,0.4612182,57867.0,57866.0,0.086428]
[1725387821773,0.4622182,57867.0,57866.0,0.086428]
[1725387822075,0.1014182,57867.0,57866.0,0.086428]
[1725387822272,0.1024182,57867.0,57866.0,0.086428]
[1725387822776,0.08643,57865.0,57862.0,0.086433]
[1725387823276,0.086431,57864.0,57862.0,0.086433]
[1725387823473,0.086432,57863.0,57862.0,0.086433]
[1725387823666,0.086435,57861.0,57860.0,0.37025904]
[1725387823881,0.086435,57861.0,57860.0,0.00025904]
[1725387824468,0.3608,57863.0,57862.0,0.086434]
[1725387825364,0.086428,57866.0,57864.0,0.08643]
[1725387825564,0.086429,57865.0,57864.0,0.08643]
[1725387827273,0.086429,57865.0,57864.0,0.08743]
[1725387827473,0.086429,57865.0,57864.0,0.08843]
[1725387828767,1.291298,57865.0,57864.0,0.002]
[1725387828981,1.291298,57865.0,57860.0,0.00025904]
[1725387828982,0.259305,57861.0,57860.0,0.00025904]
[1725387829174,0.08645,57851.0,57850.0,0.004]
[1725387829482,0.08645,57851.0,57842.0,0.0984]
[1725387829483,0.086456,57848.0,57842.0,0.0984]
[1725387829686,0.00866911,57848.0,57845.0,0.086459]
[1725387829884,0.086457,57847.0,57845.0,0.086459]
[1725387830069,0.00851168,57848.0,57842.0,0.0984]
[1725387830268,0.086455,57848.0,57842.0,0.0984]
[1725387830489,0.080455,57848.0,57847.0,0.086456]
[1725387831078,0.075455,57848.0,57847.0,0.086456]
[1725387831283,0.24,57848.0,57843.0,0.086461]
[1725387831478,0.086459,57845.0,57844.0,0.08646]
[1725387834070,0.3608,57847.0,57846.0,0.086458]
[1725387834274,0.447256,57847.0,57846.0,0.086458]
[1725387836601,0.3608,57847.0,57846.0,0.086458]
[1725387836976,0.0137489,57850.0,57849.0,0.086453]
[1725387837180,0.00025929,57851.0,57850.0,0.086452]
[1725387837375,0.086462,57843.0,57842.0,0.447262]
[1725387837685,0.24,57843.0,57842.0,0.086462]
[1725387838180,0.086462,57844.0,57843.0,0.086462]
[1725387839388,0.447256,57847.0,57841.0,0.24]
[1725387839583,0.002,57850.0,57849.0,0.086453]
[1725387839896,0.002,57850.0,57843.0,0.086462]
[1725387839897,0.086457,57847.0,57846.0,0.086457]
[1725387840086,0.126457,57847.0,57846.0,0.086457]
[1725387840475,0.08646,57844.0,57843.0,0.09046]
[1725387840672,0.45646,57844.0,57843.0,0.001]
[1725387840883,0.41292,57844.0,57843.0,0.001]
[1725387841081,0.172932,57840.0,57839.0,0.00025929]
[1725387841284,0.883732,57840.0,57839.0,0.00025929]
[1725387841471,1.402412,57840.0,57839.0,0.00025929]
[1725387842075,1.401412,57840.0,57839.0,0.00025929]
[1725387842480,0.4708,57840.0,57839.0,0.00025929]
[1725387842687,0.4708,57840.0,57839.0,0.08672729]
[1725387842879,0.57075714,57840.0,57839.0,0.00025929]
[1725387843078,0.65722314,57840.0,57839.0,0.00025929]
[1725387843284,0.66422314,57840.0,57839.0,0.00125929]
[1725387843488,0.57775714,57840.0,57839.0,0.00125929]
[1725387843684,0.58575714,57840.0,57839.0,0.00125929]
[1725387845587,0.58575714,57840.0,57839.0,0.08772729]
[1725387846087,0.58575714,57840.0,57839.0,0.00125929]
[1725387847490,0.49929114,57840.0,57839.0,0.08772729]
[1725387847887,0.49929114,57840.0,57839.0,0.19062729]
[1725387850699,0.45602845,57840.0,57839.0,0.32877657]
[1725387850903,0.44253731,57840.0,57839.0,0.27709529]
[1725387851786,0.125,57840.0,57839.0,0.34600366]
[1725387851999,0.125,57840.0,57839.0,0.27709529]
[1725387852793,0.125,57840.0,57839.0,0.19062729]
[1725387852997,0.211466,57840.0,57839.0,0.25946186]